Cogmind - Beta 17 @@@ ROGUE MODE // 2026.06.23 @ 12:33:03 Player: WetterLettuce Result: Destroyed by D-63 Destroyer with Heavy Rocket Launcher Performance ------------- Evolutions (6) 3000 Regions Visited (13) 2600 Robots Destroyed (98) 490 Value Destroyed (4448) 4448 Prototype IDs (6) 120 Alien Tech Used (0) 0 Bonus (11345) 11345 TOTAL SCORE: 22003 Bonus ------- High Alert Combat Kills 270 Follower Combat Kills 725 Prayed to X0-1V1 5000 Major X0-1V1 Interference 3450 Entered Garrisons 400 Used RIF Installer 1000 Entered DSFs 500 Cogmind --------- Core Integrity 0/960 Matter 280/300 Energy 99/100 System Corruption 8% Temperature Cool (2) Movement Flying (32) Location -4/Armory Parts ------- > --- POWER (2) -------- (None) > --- PROPULSION (6) --- Cesium-ion Thruster Cesium-ion Thruster > --- UTILITY (9) ------ X0-1V1's Piety Tracker > --- WEAPON (3) ------- Great Axe > --- INVENTORY (5) ---- Heavy Laser Enhanced Nova Cannon Enhanced Nova Cannon Enhanced Nova Cannon Peak State ------------ > --- POWER ------------ F-cell Engine Light Antimatter Reactor > --- PROPULSION ------- Flexi-carbon Leg Improved VSS Leg Multireflex Exoskeleton Improved Thunder Leg Improved Thunder Leg > --- UTILITY ---------- Advanced Heat Sink Advanced Cooling System Small Storage Unit Hardened Heavy Armor Plating Improved Hacking Suite System Shield Relay Coupler [Hunter] X0-1V1's Piety Tracker > --- WEAPON ----------- High-powered Shock Rifle Phase Cannon Enhanced Gauss Cannon > --- INVENTORY -------- F-cell Engine Relay Coupler [Cutter] Relay Coupler [Brawler] Relay Coupler [Specialist] Tesla Rifle Improved Remote Datajack Improved Remote Datajack [Rating: 116] Favorites ----------- Power Light Nuclear Core Engine Reinforced Deuterium Engine Power Core Light Nuclear Core Reactor Light Antimatter Reactor Propulsion Aluminum Leg Treads Advanced Medium Treads Leg Aluminum Leg Hover Unit Gravmag System Flight Unit VTOL Module Utility X0-1V1's Piety Tracker Device X0-1V1's Piety Tracker Storage Small Storage Unit Processor Targeting Computer Hackware Relay Coupler [Sentry] Protection Improved Light Armor Plating Weapon Shotgun Energy Gun Field Laser Energy Cannon Phase Cannon Ballistic Gun Shotgun Ballistic Cannon Advanced Assault Cannon Launcher Improved Grenade Launcher Special Weapon Remote Datajack Slashing Weapon Great Axe Special Melee Weapon Improved Datajack Build | -11 -10 -9 -9 -8 -8 -8 -7 -7 -6 -6 -5 -4 -4 ------- Run | Yrd Mat Mat Min Mat Sto Gar Fac DSF Fac Gar Fac Fac Arm Slots Evolved 12 | . . 2 . 2 . . 2 . 2 . 2 2 . Power 1 | . . . . . . . . . . . 1 . . Propulsion 4 | . . 1 . 1 . . . . 1 . . 1 . Utility 6 | . . 1 . . . . 2 . 1 . 1 1 . Weapon 1 | . . . . 1 . . . . . . . . . Parts Attached 136 | 6 15 5 . 8 . 29 1 8 2 16 19 10 17 Power 18 | 1 2 1 . 1 . 5 . . . 2 3 1 2 Engine 9 | 1 2 1 . 1 . 1 . . . 1 2 . . Core 6 | . . . . . . 4 . . . 1 1 . . Reactor 3 | . . . . . . . . . . . . 1 2 Propulsion 41 | 2 3 2 . 2 . 11 . 4 1 8 2 3 3 Treads 1 | . . . . . . . . . . . . . 1 Leg 24 | 2 1 . . . . 11 . . . 6 2 2 . Wheel . | . . . . . . . . . . . . . . Hover 8 | . . . . . . . . 4 1 2 . 1 . Flight 8 | . 2 2 . 2 . . . . . . . . 2 Utility 43 | 1 6 1 . 1 . 6 1 3 1 4 11 3 5 Device 22 | . 3 . . 1 . 4 . 1 1 1 5 2 4 Storage 2 | 1 . . . . . . . 1 . . . . . Processor 2 | . 2 . . . . . . . . . . . . Hackware 11 | . . 1 . . . 1 . 1 . 2 4 1 1 Protection 6 | . 1 . . . . 1 1 . . 1 2 . . Artifact . | . . . . . . . . . . . . . . Weapon 34 | 2 4 1 . 4 . 7 . 1 . 2 3 3 7 Energy Gun 9 | . . . . 2 . 3 . . . 1 . 2 1 Energy Cannon 7 | . . . . . . 1 . . . 1 1 . 4 Ballistic Gun 8 | 2 4 1 . 1 . . . . . . . . . Ballistic Cannon 4 | . . . . 1 . 2 . . . . 1 . . Launcher 1 | . . . . . . 1 . . . . . . . Special Weapon 2 | . . . . . . . . . . . 1 1 . Impact Weapon . | . . . . . . . . . . . . . . Slashing Weapon 2 | . . . . . . . . . . . . . 2 Piercing Weapon . | . . . . . . . . . . . . . . Special Melee Weapon 1 | . . . . . . . . 1 . . . . . Unidentified Prototypes 6 | . 1 . . 1 . . . . . . 4 . . Corrupted Parts 1 | . . . . . . . . . . 1 . . . System Corruption 1 | . . . . . . . . . . 1 . . . Parts Lost 71 | . 4 2 1 1 . 18 . 5 . 6 6 16 12 Power 9 | . 1 1 . . . 3 . . . . . 2 2 Propulsion 26 | . 1 1 . 1 . 8 . 3 . 3 3 5 1 Utility 17 | . . . 1 . . 2 . 1 . 1 2 6 4 Weapon 19 | . 2 . . . . 5 . 1 . 2 1 3 5 Highest Loss Streak 16 | . 3 2 1 1 . 4 . 5 . 3 5 16 6 To Critical Strikes . | . . . . . . . . . . . . . . Average Backups 5 | 1 6 4 5 4 5 4 5 5 6 7 7 7 4 Power . | . . . . . . . 1 1 1 1 . 1 . Propulsion . | . 2 1 2 . . . . . 2 1 . . . Utility 2 | . . . . . 1 2 3 2 1 2 5 3 . Weapon 1 | . 3 3 3 3 3 1 . 1 1 . . 1 2 Tool/Special . | . . . . . . . . . . . . . . Unused Backups 23 | . 10 . 1 3 . 2 . . . 3 . 1 3 Power 4 | . 1 . . . . . . . . 3 . . . Propulsion 5 | . 4 . 1 . . . . . . . . . . Utility 2 | . . . . . . 1 . . . . . 1 . Weapon 11 | . 5 . . 3 . 1 . . . . . . 2 Tool/Special 1 | . . . . . . . . . . . . . 1 Average Slot Usage (%) 84 | . 91 84 96 96 100 92 91 84 93 95 96 78 20 Engine 5 | . 13 6 11 7 9 1 . . . 3 5 4 1 Core 2 | . . . . . . 5 7 7 6 2 3 . . Leg 18 | . 18 . . . . 28 28 17 . 15 25 19 . Hover 2 | . . . . . . . . 5 31 13 . 1 . Flight 5 | . 9 31 33 35 36 2 . . . . . . . Device 12 | . 3 11 7 8 9 15 14 15 20 18 19 13 5 Storage 3 | . 9 . . . . . . 5 6 6 5 4 . Processor 5 | . 6 11 11 9 9 8 7 7 6 6 1 . . Hackware 6 | . . 2 11 9 9 2 7 5 6 8 14 14 3 Protection 1 | . 1 . . . . 1 6 4 . 2 1 4 . Energy Gun 3 | . . . . 3 . 8 7 2 . 1 4 2 . Energy Cannon 3 | . . . . . . 2 7 2 4 9 5 4 3 Ballistic Gun 7 | . 27 22 22 18 18 5 . . . . . . . Ballistic Cannon 2 | . . . . 3 9 8 7 4 4 2 . 4 . Peak Build Rating 116 | 6 23 28 28 35 34 45 47 49 67 67 95 116 71 Average Rating 48 | 4 8 24 22 33 34 36 46 41 63 63 81 100 39 On Entrance 35 | . 6 23 28 15 34 34 44 47 49 67 67 75 7 Avg Prop Armor Cover (%) 5 | . . . . . . 2 . 12 . 6 . 7 . Naked Turns . | . . . . . . . . . . . . . . Heaviest Build 74 | 13 15 10 10 20 20 31 36 37 31 45 63 74 44 Greatest Support 127 | 20 20 15 15 20 20 45 40 40 44 75 81 127 30 Greatest Overweight (x) 12 | . 3 . . 1 . 1 . 1 . 2 . . 12 Average Overweight (x) . | . . . . . . . . . . . . . . Largest Inventory Capacity 8 | 8 8 5 5 5 5 5 5 8 8 8 8 8 5 Average Capacity 6 | 7 6 5 5 5 5 5 5 7 8 8 8 7 5 Most Carried 8 | 4 8 5 5 5 5 5 5 8 7 8 8 8 5 Average Carried 6 | 2 6 4 5 4 5 4 5 5 5 7 7 7 4 Final Capacity 8 | 8 5 5 5 5 5 5 5 8 8 8 8 5 5 Final Carried 8 | 4 5 5 5 5 5 5 5 8 6 8 7 5 4 Class Distribution -------------------- 26% | Scavenger-Gunner 20% | Mutant 12% | Scavenger-Tank 10% | Scavenger-Mutant 10% | Sprinter 7% | Bothacker-Tank 5% | Bothacker-Mutant 3% | Commander-Mutant Dominant Class ---------------- Mutant | -10/Materials Sprinter | -9/Materials Sprinter | -9/Mines Sprinter | -8/Materials Sprinter | -8/Storage Scavenger-Gunner | -8/Garrison Scavenger-Gunner | -7/Factory Scavenger-Mutant | -7/DSF Scavenger-Mutant | -6/Factory Scavenger-Mutant | -6/Garrison Scavenger-Tank | -5/Factory Bothacker-Tank | -4/Factory Mutant | -4/Armory Resources | -11 -10 -9 -9 -8 -8 -8 -7 -7 -6 -6 -5 -4 -4 ----------- Run | Yrd Mat Mat Min Mat Sto Gar Fac DSF Fac Gar Fac Fac Arm Matter Collected 3607 | 212 411 129 49 233 . 828 . . . 1188 157 168 232 Remotely . | . . . . . . . . . . . . . . Salvage Created 3689 | . 520 158 75 319 . 810 . 89 . 390 574 417 337 Parts 182 | . 35 16 15 14 . 41 . 4 . 11 22 18 6 Haulers Intercepted 1 | . . . . . . . . . . . 1 . . Recyclers Shooed 1 | . . . . . . . . . . . . 1 . Parts Field Recycled . | . . . . . . . . . . . . . . Retrieved Matter . | . . . . . . . . . . . . . . Parts Self-Destructed . | . . . . . . . . . . . . . . Prevented . | . . . . . . . . . . . . . . Parts Restored . | . . . . . . . . . . . . . . Kills | -11 -10 -9 -9 -8 -8 -8 -7 -7 -6 -6 -5 -4 -4 ------- Run | Yrd Mat Mat Min Mat Sto Gar Fac DSF Fac Gar Fac Fac Arm Combat Hostiles Destroyed 88 | . 15 7 6 7 . 24 . 2 . 8 8 6 5 Melee 1 | . . . . . . . . . . . . . 1 Guns 51 | . 15 7 6 6 . 12 . . . . 2 3 . Cannons 32 | . . . . 1 . 11 . 2 . 8 4 3 3 AOE 1 | . . . . . . 1 . . . . . . . Classes Destroyed 13 | . 4 2 . . . 2 . 1 . 2 2 . . Tunneler 1 | . . 1 . . . . . . . . . . . Hauler 1 | . . . . . . . . . . . 1 . . Operator 3 | . 1 1 . 1 . . . . . . . . . Watcher 5 | . 2 . . . . 1 . . . . . 2 . Swarmer 21 | . 6 6 6 1 . 2 . . . . . . . Grunt 49 | . 9 . . 4 . 18 . . . 6 5 3 4 Brawler 1 | . . . . . . 1 . . . . . . . Duelist 1 | . . . . . . 1 . . . . . . . Protector 1 | . . . . . . . . . . 1 . . . Sentry 5 | . . 1 . 2 . 1 . . . . . 1 . Demolisher 1 | . . . . . . . . . . 1 . . . Specialist 3 | . . . . . . . . 2 . . . . 1 Programmer 5 | . . . . . . . . . . . 3 2 . Thug 1 | . . . . . . 1 . . . . . . . Best Kill Streak 9 | . 3 9 6 4 . 4 . 2 . 3 4 2 2 Combat Bots Only 7 | . 3 7 6 4 . 4 . 2 . 3 3 2 2 Max Kills in Single Turn 2 | . 1 2 2 1 . 2 . 1 . 1 1 1 1 Gunslinging 1 | . . 1 1 . . . . . . . . . . Exploded 1 | . . . . . . 1 . . . . . . . Melee 1 | . . . . . . . . . . . . . 1 Uniques/NPCs Destroyed . | . . . . . . . . . . . . . . Combat | -11 -10 -9 -9 -8 -8 -8 -7 -7 -6 -6 -5 -4 -4 -------- Run | Yrd Mat Mat Min Mat Sto Gar Fac DSF Fac Gar Fac Fac Arm Hostile Shots Fired 832 | . 78 34 11 23 . 151 . 35 . 62 144 140 154 Missed 258 | . 25 17 8 11 . 44 . 11 . 22 36 41 43 Hits 574 | . 53 17 3 12 . 107 . 24 . 40 108 99 111 Melee 14 | . . . . . . 8 . . . 1 . 5 . Projectile 560 | . 53 17 3 12 . 99 . 24 . 39 108 94 111 AOE 6 | . . . . . . . . . . . . 1 5 Critical Strikes 26 | . 2 4 . . . 5 . 1 . 2 4 3 5 Damage Taken 10354 | . 551 198 27 206 . 1916 . 605 . 724 1690 2037 2400 Core 2337 | . 88 68 10 35 . 296 . 76 . 122 265 368 1009 Absorbed by Shields 492 | . . . . . . . . . . . 390 . 102 Ignored by Resistances 27 | . . . . . . . . . . . . 27 . Core Remaining (%) 75 | 100 64 . 96 . . 33 . 85 . 81 67 . . Volleys Fired 283 | . 61 17 5 19 . 68 . 7 . 30 30 24 22 Largest 3 | . 2 2 2 3 . 3 . 2 . 2 2 3 2 Hottest 240 | . 43 43 46 96 . 205 . 129 . 160 110 210 240 Shots Fired 573 | . 120 34 10 57 . 153 . 12 . 45 50 51 41 Gun 329 | . 120 34 10 52 . 76 . . . 1 20 13 3 Cannon 229 | . . . . 5 . 74 . 12 . 44 22 36 36 Launcher 3 | . . . . . . 3 . . . . . . . Special 12 | . . . . . . . . . . . 8 2 2 Kinetic 360 | . 120 34 10 43 . 104 . 7 . 20 3 19 . Thermal 163 | . . . . . . 46 . 5 . 17 39 17 39 Explosive 3 | . . . . . . 3 . . . . . . . Electromagnetic 35 | . . . . 14 . . . . . 8 . 13 . Robot Hit Streak 22 | . 12 16 3 17 . 14 . 9 . 13 8 10 22 Robot Miss Streak 6 | . 5 3 3 6 . 4 . 1 . 1 3 4 3 Penetration Max . | . . . . . . . . . . . . . . Secondary Targets 10 | . 5 2 2 . . 1 . . . . . . . Max Gunslinging Chain 1 | . 1 1 1 . . 1 . . . . . . . Shots Hit Robots 409 | . 83 24 7 45 . 99 . 10 . 38 32 34 37 Core Hits 182 | . 31 12 6 23 . 54 . 3 . 15 12 17 9 Critical Kills 4 | . 1 . . . . . . . . . 3 . . Critical Parts Destroyed 2 | . . 1 . 1 . . . . . . . . . Critical Strikes 21 | . 1 1 . 2 . 7 . . . 2 3 3 2 Burn 5 | . . . . . . 5 . . . . . . . Meltdown 3 | . . . . . . . . . . . 3 . . Destroy 4 | . 1 1 . 2 . . . . . . . . . Blast 6 | . . . . . . 2 . . . 1 . 3 . Corrupt 1 | . . . . . . . . . . 1 . . . Sever 2 | . . . . . . . . . . . . . 2 Melee Attacks 30 | . . . . . . . . . . 3 . . 27 Impact . | . . . . . . . . . . . . . . Slashing 27 | . . . . . . . . . . . . . 27 Piercing . | . . . . . . . . . . . . . . Sneak Attacks . | . . . . . . . . . . . . . . Combat Hostiles . | . . . . . . . . . . . . . . Follow-up Attacks . | . . . . . . . . . . . . . . Damage Inflicted 9496 | . 866 365 92 881 . 2596 . 306 . 1079 781 1037 1493 Guns 3577 | . 866 309 92 758 . 1028 . . . . 313 172 39 Cannons 5176 | . . 56 . 78 . 1151 . 306 . 1079 422 865 1219 Explosions 462 | . . . . 45 . 417 . . . . . . . Melee 235 | . . . . . . . . . . . . . 235 Ramming 46 | . . . . . . . . . . . 46 . . Kinetic 4641 | . 866 365 92 623 . 1541 . 155 . 515 29 455 . Thermal 3574 | . . . . 45 . 638 . 151 . 366 706 410 1258 Explosive 417 | . . . . . . 417 . . . . . . . Electromagnetic 583 | . . . . 213 . . . . . 198 . 172 . Impact . | . . . . . . . . . . . . . . Slashing 235 | . . . . . . . . . . . . . 235 Piercing . | . . . . . . . . . . . . . . Highest Corruption 8 | . 1 . 6 . . 5 . . . 1 2 3 8 Average Corruption 3 | . 1 . 6 . . 5 . . . 1 1 1 3 Corruption Purged . | . . . . . . . . . . . . . . Corruption Blocked . | . . . . . . . . . . . . . . Effects 33 | . 1 . 1 . . 17 . . . 2 3 . 9 Message Errors 7 | . 1 . . . . 5 . . . 1 . . . Matter Fused 8 | . . . 1 . . 2 . . . 1 . . 4 Heat Flow Errors 3 | . . . . . . 1 . . . . 1 . 1 Energy Discharges 5 | . . . . . . 4 . . . . . . 1 Parts Rejected 1 | . . . . . . . . . . . . . 1 Parts Fused 1 | . . . . . . . . . . . . . 1 Data Loss (minor) 5 | . . . . . . 3 . . . . 1 . 1 Data Loss (major) 1 | . . . . . . 1 . . . . . . . Misfires 1 | . . . . . . . . . . . 1 . . Alerts 1 | . . . . . . 1 . . . . . . . Overload Shots . | . . . . . . . . . . . . . . Overflow Damage 140 | . . . . . . 47 . . . . . . 93 Projectiles 115 | . . . . . . 22 . . . . . . 93 Explosions 25 | . . . . . . 25 . . . . . . . Melee . | . . . . . . . . . . . . . . Knockbacks 26 | . . . . . . 17 . 2 . . . 7 . Impact . | . . . . . . . . . . . . . . Kinetic 24 | . . . . . . 15 . 2 . . . 7 . Secondary 2 | . . . . . . 2 . . . . . . . Self-Inflicted Damage 75 | . . . . . . 75 . . . . . . . Shots 2 | . . . . . . 2 . . . . . . . Rammed . | . . . . . . . . . . . . . . Targets Rammed 9 | . . . . . . . . . . . 9 . . Kicked 9 | . . . . . . . . . . . 9 . . Crushed . | . . . . . . . . . . . . . . Highest Temperature 495 | . 22 26 . 244 . 458 . . . 187 280 142 495 Average Temperature 88 | . 7 10 . 70 . 86 . . . 88 160 59 163 Received Heat Transfer 2328 | . 237 135 . 90 . 909 . . . 237 204 178 338 Effects 2 | . . . . 1 . 1 . . . . . . . Shutdowns 1 | . . . . . . 1 . . . . . . . Energy Bleed 1 | . . . . 1 . . . . . . . . . Siege Activations . | . . . . . . . . . . . . . . Martial Activations . | . . . . . . . . . . . . . . Shielding Activations . | . . . . . . . . . . . . . . Robots Disrupted 1 | . . . . . . . . . . 1 . . . Combat Hostiles 1 | . . . . . . . . . . 1 . . . Robots Corrupted . | . . . . . . . . . . . . . . Combat Hostiles . | . . . . . . . . . . . . . . Parts Fried 1 | . . . . 1 . . . . . . . . . Impact Corruptions . | . . . . . . . . . . . . . . Robots Melted 4 | . . . . . . . . . . . 3 . 1 Combat Hostiles 3 | . . . . . . . . . . . 2 . 1 Parts Melted 16 | . . . . . . . . . . 2 10 1 3 Heat Transferred 5002 | . . . . 50 . 1554 . 185 . 406 1179 481 1147 Parts Sabotaged . | . . . . . . . . . . . . . . Parts Stolen . | . . . . . . . . . . . . . . Parts Stripped . | . . . . . . . . . . . . . . Power Chain Reactions 1 | . . . . 1 . . . . . . . . . Alert | -11 -10 -9 -9 -8 -8 -8 -7 -7 -6 -6 -5 -4 -4 ------- Run | Yrd Mat Mat Min Mat Sto Gar Fac DSF Fac Gar Fac Fac Arm Maximum Alert Level 2 | . . . . 1 . 2 1 1 . 2 2 1 . Low Security (%) 44 | 100 100 100 100 73 100 21 . 96 100 22 . 1 100 Level 1 20 | . . . . 26 . 18 100 3 . 10 25 98 . Level 2 34 | . . . . . . 60 . . . 66 74 . . Level 3 . | . . . . . . . . . . . . . . Level 4 . | . . . . . . . . . . . . . . Level 5 . | . . . . . . . . . . . . . . High Security . | . . . . . . . . . . . . . . Max Security . | . . . . . . . . . . . . . . Peak Influence 687 | . 180 140 173 233 85 598 313 214 101 687 648 321 91 Initial 360 | . . 16 48 66 85 55 313 194 101 63 360 256 77 Average 284 | . 99 60 80 136 85 374 296 193 96 447 501 274 27 Influence Increases 3939 | . 396 185 155 257 . 753 5 50 . 824 781 262 271 Destroy 0b10 Robot/C 2240 | . 300 140 120 140 . 540 . 40 . 460 260 120 120 Destroy 0b10 Robot/NC 70 | . 15 10 . 5 . 5 . . . 5 20 10 . Destroy Leader 304 | . 64 30 20 20 . 40 . 10 . 40 46 24 10 Allied During Kill 299 | . . . . . . 13 . . . 198 83 . 5 Successful Hack 141 | . 17 5 . 24 . 14 5 . . . 31 45 . Disable Machine 45 | . . . . . . . . . . . 45 . . Anti-Garrison Action 150 | . . . . . . 50 . . . 100 . . . Destroy Structure 118 | . . . . 8 . 46 . . . 6 24 18 16 Partial Spotted 45 | . . . . 30 . . . . . . . . 15 Lose Combat Pursuer 285 | . . . 15 30 . 45 . . . 15 30 45 105 Miscellaneous 242 | . . . . . . . . . . . 242 . . Influence Decreases 3864 | . 356 100 107 227 118 240 325 134 103 228 945 627 354 Entered New Map 1521 | . . 24 77 107 118 30 285 84 93 28 327 267 81 Time Decay 1317 | . 316 56 20 110 . . 40 . 10 . 398 180 187 Lost Part 651 | . 40 20 10 10 . 180 . 50 . 60 60 160 61 Lost Ally 375 | . . . . . . 30 . . . 140 160 20 25 Squads Dispatched 19 | . 3 1 . 1 . . . 1 . . 8 2 3 Investigation 5 | . 2 . . . . . . . . . 2 1 . Extermination 4 | . . . . . . . . . . . 2 1 1 Reinforcement 8 | . 1 1 . 1 . . . 1 . . 2 . 2 Assault 2 | . . . . . . . . . . . 2 . . Garrison . | . . . . . . . . . . . . . . Intercept . | . . . . . . . . . . . . . . Searches Triggered . | . . . . . . . . . . . . . . Construction Impeded . | . . . . . . . . . . . . . . Haulers Reinforced 1 | . . . . . . . . . . . 1 . . Active Scanning Responses . | . . . . . . . . . . . . . . Cargo Convoy Interrupts . | . . . . . . . . . . . . . . Stealth | -11 -10 -9 -9 -8 -8 -8 -7 -7 -6 -6 -5 -4 -4 --------- Run | Yrd Mat Mat Min Mat Sto Gar Fac DSF Fac Gar Fac Fac Arm Distress Signals 8 | . . . . 2 . 1 . . . . . 2 3 Communications Jammed . | . . . . . . . . . . . . . . Distress Signals . | . . . . . . . . . . . . . . Times Spotted 214 | . 26 9 7 11 . 34 . 4 . 28 35 34 26 Peak Tracking Total 16 | . 5 4 4 4 . 8 . 3 . 9 12 16 13 Tactical Retreats 12 | . . . 1 2 . 2 . . . 1 2 2 2 Traps | -11 -10 -9 -9 -8 -8 -8 -7 -7 -6 -6 -5 -4 -4 ------- Run | Yrd Mat Mat Min Mat Sto Gar Fac DSF Fac Gar Fac Fac Arm Traps Triggered 8 | . 3 . . . . 1 . . . 2 1 1 . Indirectly . | . . . . . . . . . . . . . . Trap Hack Attempts . | . . . . . . . . . . . . . . Triggered . | . . . . . . . . . . . . . . Disarmed . | . . . . . . . . . . . . . . Reprogrammed . | . . . . . . . . . . . . . . Reused . | . . . . . . . . . . . . . . Traps Extracted . | . . . . . . . . . . . . . . Installed . | . . . . . . . . . . . . . . Triggered . | . . . . . . . . . . . . . . Machines | -11 -10 -9 -9 -8 -8 -8 -7 -7 -6 -6 -5 -4 -4 ---------- Run | Yrd Mat Mat Min Mat Sto Gar Fac DSF Fac Gar Fac Fac Arm Machines Disabled 7 | . . . . . . 2 . . . 2 3 . . Max in Single Turn 1 | . . . . . . 1 . . . 1 . . . Garrison Relay 4 | . . . . . . 2 . . . 2 . . . Machines Repaired . | . . . . . . . . . . . . . . Machines Dismantled . | . . . . . . . . . . . . . . Machines Sabotaged . | . . . . . . . . . . . . . . Overloaded Fab Kills . | . . . . . . . . . . . . . . Hacking | -11 -10 -9 -9 -8 -8 -8 -7 -7 -6 -6 -5 -4 -4 --------- Run | Yrd Mat Mat Min Mat Sto Gar Fac DSF Fac Gar Fac Fac Arm Machines Accessed 32 | . 6 3 . 6 1 5 1 . 1 . 5 3 1 Terminals 23 | . 6 2 . 5 . 5 1 . . . 2 1 1 Fabricators 4 | . . . . . . . . . . . 2 2 . Repair Stations . | . . . . . . . . . . . . . . Recycling Units . | . . . . . . . . . . . . . . Scanalyzers 3 | . . 1 . 1 . . . . . . 1 . . Garrison Access 2 | . . . . . 1 . . . 1 . . . . Total Hacks 77 | . 14 15 . 17 1 7 2 . 1 . 14 5 1 Successful 37 | . 6 8 . 10 1 2 1 . 1 . 5 2 1 Failed 39 | . 8 7 . 6 . 5 1 . . . 9 3 . Catastrophic 7 | . . 2 . . . 2 . . . . 1 2 . Database Lockouts 1 | . . . . 1 . . . . . . . . . Manual 39 | . 11 5 . 9 . 2 . . . . 8 4 . Terminals 58 | . 14 11 . 14 . 7 2 . . . 8 1 1 Fabricators 8 | . . . . . . . . . . . 4 4 . Repair Stations . | . . . . . . . . . . . . . . Recycling Units . | . . . . . . . . . . . . . . Scanalyzers 9 | . . 4 . 3 . . . . . . 2 . . Garrison Access 2 | . . . . . 1 . . . 1 . . . . Terminal Hacks 12 | . 2 3 . 2 . 2 1 . . . 1 . 1 Open Door 2 | . . . . . . 1 . . . . . . 1 Open DSF 1 | . . . . . . . 1 . . . . . . Branch Access Points 2 | . . 1 . 1 . . . . . . . . . Alert Level 1 | . . 1 . . . . . . . . . . . Locate Traps 1 | . 1 . . . . . . . . . . . . Hauler Manifests 1 | . 1 . . . . . . . . . . . . Zone Layout 3 | . . 1 . 1 . . . . . . 1 . . Garrison Registry 1 | . . . . . . 1 . . . . . . . Fabricator Hacks 1 | . . . . . . . . . . . . 1 . Build 1 | . . . . . . . . . . . . 1 . Repair Station Hacks . | . . . . . . . . . . . . . . Recycling Unit Hacks . | . . . . . . . . . . . . . . Scanalyzer 5 | . . 3 . 2 . . . . . . . . . Insert Component 1 | . . 1 . . . . . . . . . . . Retrieve Study 4 | . . 2 . 2 . . . . . . . . . Garrison Access Hacks 2 | . . . . . 1 . . . 1 . . . . Unlock Access 2 | . . . . . 1 . . . 1 . . . . Unauthorized Hacks 17 | . 4 2 . 6 . . . . . . 4 1 . Terminals 14 | . 4 2 . 6 . . . . . . 2 . . Assimilate 2 | . . . . 2 . . . . . . . . . Botnet 12 | . 4 2 . 4 . . . . . . 2 . . Fabricators 3 | . . . . . . . . . . . 2 1 . Liberate 1 | . . . . . . . . . . . 1 . . Fabnet 2 | . . . . . . . . . . . 1 1 . Repair Stations . | . . . . . . . . . . . . . . Recycling Units . | . . . . . . . . . . . . . . Scanalyzers . | . . . . . . . . . . . . . . Garrison Access . | . . . . . . . . . . . . . . Data Cores Recovered 3 | . 1 . . 1 . . . . . . 1 . . Used . | . . . . . . . . . . . . . . Hacking Detections 27 | . 6 3 . 4 . 4 1 . 1 . 5 3 . Full Trace Events . | . . . . . . . . . . . . . . Feedback Events . | . . . . . . . . . . . . . . Feedback Blocked . | . . . . . . . . . . . . . . Robot Schematics Acquired . | . . . . . . . . . . . . . . Robots Built . | . . . . . . . . . . . . . . Authchips . | . . . . . . . . . . . . . . Time . | . . . . . . . . . . . . . . Total Robot Build Rating . | . . . . . . . . . . . . . . Part Schematics Acquired . | . . . . . . . . . . . . . . Parts Built 2 | . . . . . . . . . . . . 2 . Authchips . | . . . . . . . . . . . . . . Time 42 | . . . . . . . . . . . . 42 . Total Part Build Rating 16 | . . . . . . . . . . . . 16 . Part Studies Acquired 4 | . . 2 . 2 . . . . . . . . . Parts Repaired . | . . . . . . . . . . . . . . Time . | . . . . . . . . . . . . . . Parts Recycled . | . . . . . . . . . . . . . . Recycled Matter . | . . . . . . . . . . . . . . Retrieved Matter . | . . . . . . . . . . . . . . Retrieved Components . | . . . . . . . . . . . . . . Parts Scanalyzed . | . . . . . . . . . . . . . . Part Schematics Acquired . | . . . . . . . . . . . . . . Parts Damaged . | . . . . . . . . . . . . . . Bothacking | -11 -10 -9 -9 -8 -8 -8 -7 -7 -6 -6 -5 -4 -4 ------------ Run | Yrd Mat Mat Min Mat Sto Gar Fac DSF Fac Gar Fac Fac Arm Used RIF Installer 2 | . . . . . . 1 . . . 1 . . . Program Shield 1 | . . . . . . . . . . 1 . . . Autoassimilate 1 | . . . . . . . . . . . . 1 . Robots Hacked 9 | . . . . . . . . . . 3 3 1 2 Non-combat . | . . . . . . . . . . . . . . Combat 9 | . . . . . . . . . . 3 3 1 2 Autoassimilated 1 | . . . . . . . . . . . . . 1 Robot Hacks Applied 7 | . . . . . . . . . . 3 3 . 1 streamctrl_high 1 | . . . . . . . . . . 1 . . . formatsys_high 6 | . . . . . . . . . . 2 3 . 1 Relay Couplers Released 17 | . . . . . . 7 . . . 10 . . . Machine Destruction 17 | . . . . . . 7 . . . 10 . . . Attached 8 | . . . . . . 1 . 1 . 2 2 1 1 Fabnet Peak Effective % 3 | . . . . . . . . . . . . 3 3 Autooverrided 1 | . . . . . . . . . . . . 1 . Robots Rewired 6 | . . . . . . 2 . . . . 1 . 3 Allies Hacked 1 | . . . . . . . . . . . 1 . . Hacks Repelled . | . . . . . . . . . . . . . . Allies | -11 -10 -9 -9 -8 -8 -8 -7 -7 -6 -6 -5 -4 -4 -------- Run | Yrd Mat Mat Min Mat Sto Gar Fac DSF Fac Gar Fac Fac Arm Total Allies 28 | . . . . 1 . 2 . . 4 5 10 1 5 Largest Group 8 | . . . . 1 . 3 . . 4 8 7 1 3 Highest-Rated Group 398 | . . . . 10 . 72 . . 116 331 398 47 168 Highest-Rated Ally 142 | . . . . 10 . 31 . . 29 95 142 47 64 Total Orders . | . . . . . . . . . . . . . . Ally Attacks 197 | . . . . . . 10 . . . 101 75 3 8 Total Damage 4922 | . . . . . . 170 . . . 2028 2325 115 284 Kills 30 | . . . . . . 3 . . . 16 10 . 1 Allies Corrupted 4 | . . . . . . . . . . 1 3 . . Allies Melted . | . . . . . . . . . . . . . . X0-1V1 Amusement Gains 180 | . 15 . 10 5 . 20 . . . 20 30 30 50 Good Acts 24 | . . 3 . . . 4 1 2 1 1 6 4 2 Bad Acts 26 | . . 3 1 3 . 8 . . . . 7 2 2 Intel | -11 -10 -9 -9 -8 -8 -8 -7 -7 -6 -6 -5 -4 -4 ------- Run | Yrd Mat Mat Min Mat Sto Gar Fac DSF Fac Gar Fac Fac Arm Active Infowar (turns) 338 | . 316 . . . . . . . 19 3 . . . Optics 178 | . 178 . . . . . . . . . . . . Terrain 31 | . 9 . . . . . . . 19 3 . . . ECM 138 | . 138 . . . . . . . . . . . . Robot Analysis Total . | . . . . . . . . . . . . . . Derelict Logs Recovered . | . . . . . . . . . . . . . . Drone Launches . | . . . . . . . . . . . . . . Drone Recoveries . | . . . . . . . . . . . . . . Exploration | -11 -10 -9 -9 -8 -8 -8 -7 -7 -6 -6 -5 -4 -4 ------------- Run | Yrd Mat Mat Min Mat Sto Gar Fac DSF Fac Gar Fac Fac Arm Turns Passed 4855 | 64 730 129 51 221 1 1072 84 101 37 511 946 364 544 Spaces Moved 3966 | 48 826 248 100 330 2 687 69 61 38 419 656 203 279 Core 136 | 8 . . . . . . . . . . . 19 109 Treads 140 | . . . . . . . . . . . . . 140 Legs 2060 | 40 236 . . . . 656 69 33 . 186 656 184 . Wheels . | . . . . . . . . . . . . . . Hover 299 | . . . . . . . . 28 38 233 . . . Flight 1331 | . 590 248 100 330 2 31 . . . . . . 30 Fastest Speed 27 | 50 32 29 29 27 28 28 120 48 44 44 100 50 32 Average Speed 84 | 108 59 29 29 27 28 116 120 96 44 79 113 104 127 Slowest Speed 650 | 120 275 32 29 110 28 190 120 190 44 260 114 117 650 Overloaded Moves . | . . . . . . . . . . . . . . Propulsion Burnouts . | . . . . . . . . . . . . . . Robots Hopped 11 | . 9 . . 2 . . . . . . . . . Potential Cave-ins 16 | . . . . . . . . . . . . . 16 Cave-ins Triggered 2 | . . . . . . . . . . . . . 2 Exploration Rate (%) 30 | 3 95 22 36 45 2 78 4 69 2 35 18 7 14 Regions Visited 13 Branch Regions 3 Pre-discovered Areas . | . . . . . . . . . . . . . . Known Exits Taken 5 | . . 1 . 1 1 . 1 . 1 . . . . Unknown Exits Taken 5 | 1 1 . 1 . . . . . . . 1 1 . Scrap Searched . | . . . . . . . . . . . . . . Spaces Dug 19 | . . . . . . . . . . . . . 19 Terrain Destroyed 72 | . . . . 8 . 25 . . . . 3 11 25 Melee 19 | . . . . . . . . . . . . . 19 Projectile 23 | . . . . 2 . 1 . . . . 3 11 6 AOE 30 | . . . . 6 . 24 . . . . . . . Terrain Rammed . | . . . . . . . . . . . . . . Walls Destroyed . | . . . . . . . . . . . . . . Machines Disabled . | . . . . . . . . . . . . . . Actions | -11 -10 -9 -9 -8 -8 -8 -7 -7 -6 -6 -5 -4 -4 --------- Run | Yrd Mat Mat Min Mat Sto Gar Fac DSF Fac Gar Fac Fac Arm Total 4904 | 57 955 273 112 415 2 822 69 89 57 551 814 311 377 Wait 289 | . 25 . 6 47 . 6 . 3 14 53 74 61 . Move 3931 | 47 808 247 99 325 2 685 68 60 38 417 655 202 278 Hop 10 | . 8 . . 2 . . . . . . . . . Pick Up 61 | 4 17 3 1 6 . 6 . 4 1 9 2 4 4 Fast Attach 99 | 6 11 2 . 5 . 22 1 5 1 12 14 5 15 Attach 36 | . 4 2 . 3 . 4 . 4 3 4 2 4 6 Detach 11 | . . . . 1 . . . 3 . . 4 1 2 Swap 19 | . 1 1 . . . 5 . 1 . 3 3 5 . Drop 79 | . 20 1 1 7 . 13 . 2 . 14 12 5 4 Fire 283 | . 61 17 5 19 . 68 . 7 . 30 30 24 22 Melee 30 | . . . . . . . . . . 3 . . 27 Ram . | . . . . . . . . . . . . . . Kick 9 | . . . . . . . . . . . 9 . . Crush . | . . . . . . . . . . . . . . Escape Stasis 8 | . . . . . . 3 . . . 4 . . 1 Rewire 39 | . . . . . . 10 . . . 2 9 . 18 Trap . | . . . . . . . . . . . . . . Miscellaneous . | . . . . . . . . . . . . . . Route ------- -11/Scrapyard -10/Materials (discovered 6 exits: *Mat x3 / [*Min x2] / [*Sub]) -9/Materials -9/Mines -8/Materials (discovered 2 exits: *Sto x2) -8/Storage -8/Garrison (discovered 3 exits: *Fac x3) -7/Factory -7/DSF -6/Factory -6/Garrison -5/Factory (discovered 2 exits: *Fac x2) -4/Factory (discovered 2 exits: Upp / *Arm) -4/Armory History --------- Turn | Location | Event 2 | -11/Scrapyard | Met Revision 17 7 | -11/Scrapyard | Discovered new exit (range 15) 65 | -11/Scrapyard | Entered Materials 125 | -10/Materials | Discovered new exit (range 14) 307 | -10/Materials | Build established: Mutant 390 | -10/Materials | Discovered new exit (range 9) 468 | -10/Materials | Lost 3 parts (1p1n1w) 508 | -10/Materials | Discovered new exit (range 11) 535 | -10/Materials | Discovered new exit (range 15) 661 | -10/Materials | Discovered new exit (range 3) 757 | -10/Materials | Discovered new exit (range 17) 776 | -10/Materials | Prayed at D.C.S.S. Altar Unit 795 | -10/Materials | Entered another Materials area 795 | -9/Materials | Evolved 2 slots: Propulsion x1, Utility x1 797 | -9/Materials | X0-1V1 enhanced Transport squad support 821 | -9/Materials | X0-1V1 released a cloud of subatomizers 885 | -9/Materials | Discovered new exit (range 12) 892 | -9/Materials | Build established: Sprinter 905 | -9/Materials | Destroyed 7 combat bots 912 | -9/Materials | Energy generation permanently improved by X0-1V1 (+10) 914 | -9/Materials | Identified exit to Mines 924 | -9/Materials | Entered Mines 961 | -9/Mines | Discovered new exit (range 14) 975 | -9/Mines | Entered Materials 975 | -8/Materials | Evolved 2 slots: Propulsion x1, Weapon x1 977 | -8/Materials | Discovered new exit (range 8) 1059 | -8/Materials | X0-1V1 announced a LAN party 1059 | -8/Materials | Identified exit to Storage 1090 | -8/Materials | Central database locked down 1196 | -8/Materials | Entered Storage 1196 | -8/Storage | Accompanied by 1 ally 1197 | -8/Storage | Identified exit to Garrison 1197 | -8/Storage | Entered Garrison 1197 | -8/Garrison | Accompanied by 1 ally 1259 | -8/Garrison | Triggered checkpoint 1359 | -8/Garrison | X0-1V1 rewrote RV-9MM(g) IFF filter 1407 | -8/Garrison | Triggered checkpoint 1448 | -8/Garrison | X0-1V1 whisked you away to safety 1451 | -8/Garrison | Discovered new exit (range 12) 1473 | -8/Garrison | Lost 4 parts (1p1n2w) 1495 | -8/Garrison | Triggered checkpoint 1501 | -8/Garrison | Garrison Relay disabled 1577 | -8/Garrison | Triggered checkpoint 1598 | -8/Garrison | Core integrity fell below 50% 1633 | -8/Garrison | Lost 4 parts (2n2w) 1725 | -8/Garrison | Triggered checkpoint 1766 | -8/Garrison | Utility slot count permanently improved by X0-1V1 (+1) 1773 | -8/Garrison | Lost 3 parts (1p1n1w) 1804 | -8/Garrison | Discovered new exit (range 34) 1804 | -8/Garrison | Discovered new exit (range 53) 1804 | -8/Garrison | Discovered new exit (range 45) 2048 | -8/Garrison | Build established: Scavenger-Gunner 2069 | -8/Garrison | Triggered checkpoint 2112 | -8/Garrison | Installed Relay Interface Framework 2181 | -8/Garrison | Triggered checkpoint 2210 | -8/Garrison | Melee accuracy permanently improved by X0-1V1 (+9%) 2230 | -8/Garrison | Garrison Relay disabled 2269 | -8/Garrison | Entered Factory 2269 | -7/Factory | Evolved 2 slots: Utility x2 2351 | -7/Factory | Identified exit to DSF 2353 | -7/Factory | Entered DSF 2377 | -7/DSF | Additional patrols routed to DSF 2410 | -7/DSF | X0-1V1 whisked you away to safety 2416 | -7/DSF | Discovered new exit (range 7) 2438 | -7/DSF | Lost 5 parts (3n1u1w) 2454 | -7/DSF | Entered Factory 2454 | -6/Factory | Evolved 2 slots: Propulsion x1, Utility x1 2458 | -6/Factory | X0-1V1 sent you to a vault 2488 | -6/Factory | Identified exit to Garrison 2491 | -6/Factory | Entered Garrison 2491 | -6/Garrison | Accompanied by 4 allies 2504 | -6/Garrison | Expanded RIF knowledge: Program Shield 2508 | -6/Garrison | Found embedded Infiltrators 2521 | -6/Garrison | Triggered checkpoint 2541 | -6/Garrison | Triggered checkpoint 2559 | -6/Garrison | Garrison Relay disabled 2645 | -6/Garrison | Triggered checkpoint 2681 | -6/Garrison | Lost 3 parts (3n) 2699 | -6/Garrison | Triggered checkpoint 2722 | -6/Garrison | Lost 4 allies 2855 | -6/Garrison | Triggered checkpoint 2906 | -6/Garrison | Garrison Relay disabled 2956 | -6/Garrison | Discovered new exit (range 10) 3002 | -6/Garrison | Entered Factory 3002 | -5/Factory | Accompanied by 1 ally 3002 | -5/Factory | Evolved 2 slots: Power x1, Utility x1 3104 | -5/Factory | X0-1V1 sent you to a vault 3111 | -5/Factory | Discovered new exit (range 8) 3262 | -5/Factory | X0-1V1 added 0b10 threat records associated with you (major) 3517 | -5/Factory | Build established: Scavenger-Tank 3602 | -5/Factory | First assault squad dispatched 3724 | -5/Factory | Lost 4 allies 3856 | -5/Factory | X0-1V1 enhanced Transport squad support 3925 | -5/Factory | Discovered new exit (range 15) 3948 | -5/Factory | Entered another Factory area 3948 | -4/Factory | Evolved 2 slots: Propulsion x1, Utility x1 3966 | -4/Factory | Lost 5 parts (2n2u1w) 4018 | -4/Factory | Identified exit to Upper Caves 4018 | -4/Factory | X0-1V1 revealed exit location to -4/Upper Caves 4034 | -4/Factory | Expanded RIF knowledge: Autoassimilate 4106 | -4/Factory | Fabricated Imp. Thunder Leg (x2) 4304 | -4/Factory | Weapon slot count temporarily expanded by X0-1V1 (+4) 4307 | -4/Factory | Discovered new exit (range 12) 4312 | -4/Factory | Entered Armory 4343 | -4/Armory | Lost 16 parts (2p5n6u3w) 4590 | -4/Armory | Build established: Mutant 4619 | -4/Armory | X0-1V1 sent you into danger 4634 | -4/Armory | Core integrity fell below 50% 4700 | -4/Armory | Lost 5 parts (1p1u3w) 4719 | -4/Armory | Core integrity fell below 20% 4730 | -4/Armory | X0-1V1 rescued you from certain death 4732 | -4/Armory | X0-1V1 alerted Armor Guard 4761 | -4/Armory | Lost 6 parts (1p1n2u2w) 4764 | -4/Armory | Crushed by falling debris 4784 | -4/Armory | Crushed by falling debris 4856 | -4/Armory | Destroyed by D-63 Destroyer with Heavy Rocket Launcher Last Messages --------------- Melee accuracy returns to normal. X0-1V1's Piety Tracker suddenly appears amidst shimmering waves of color. Acquired X0-1V1's Piety Tracker. The unstable cave ceiling collapses. Crushed by falling debris. The unstable cave ceiling collapses. ALERT: Potential suspicious activity detected, Programmers report to Armory Zone 5X. Energy capacity returns to normal. The unstable cave ceiling collapses. ALERT: Security rotation in progress. The unstable cave ceiling collapses. X0-1V1 adds a dash of confusion to 0b10's systems. (extermination recalled) Acquired 46 matter. Acquired Cesium-ion Thruster. System corrupted: Energy discharge (-35). Acquired Cesium-ion Thruster. X0-1V1 laughs nastily! Map ----- +----------------------------------------------------+ | ??????????????????????????????????????????# | #?# | | ????????????????????????????##########????#T ### | | ?????????????????????????#### # # ##???# | | ?????????????????????????# # ### | | ?????????????????????????# ## # ######### | | ?????????????????????????# # ### # ##????## | | ?????????????????????????# """ # # ###### | | ?????????????????????????# """" | | ?????????????????????????# | | ??????????????????######## % # #+##### | | ??????????????????# + # ### | | ??????????????????# ###### # " #?? | | ??????????????????# #????#"####### # "" #?? | | ?????????????????## #????###?????### ## "" #?? | | ????????????????##" #??????????????# ## "" #?? | | ???????????????## # #??????????????# ## "" #?? | | ??????????????##### #??????????????# ## " #?? | | ?????????????## ### #????########### ## #?? | | ????????????## ##?# #????# ## #?? | | ???????????## ##??# #????# ## #?? | | ??????????## ##?#######??# ############ #?? | | ?????????## ##??# ?# #??????????# #?? | | ????????## ##???# ?# #??????????# #?? | | ???????#####????? """ # #??????????# #?? | | ??????#####?????# """ # #??????????# #?? | | ?????#####??????# """ @ #??????????# #?? | | ????#####???????# """ # ?????# #?? | | ???## ##????????? """ #?#########?? | | ???# ##?????????# ?# d #???????????? | | ???####?????????# ]? """"" #???????????? | | ??## ##?????????#######?? "?????#???????????? | | ###"##??????????????? #?? ????????????????? | | !/ ##????????########"#?? # ???????????????? | | // #?????????# #? #### ??????????????? | | #?????????# #? #???#######?????????????? | | + ????# ] ] ## ##??????????????????????? | | #/####### #??#*]]]=% # #??????????????????????? | | #??????????# ]]] " +??????????????????????? | | #??????????#[% % " #??????????????????????? | | ######?????# "#?????????????????????????? | | ![ #### #??????????????????????????? | | ###%= !%= " % #??????????????????????????? | | ??#* [ ##""!""""#??????????????????????????? | | ??# ???##%""####??????????????????????????? | | ??# ??? % ????????????????????????????? | | ????? ??? ??????????????????????????? | | ???????###?# ????????????????????????? | | ???????????+ #???????????????????????? | | ???????????# #???????????????????????? | | ???????????##+###### #???????????????????????? | +----------------------------------------------------+ Best States ------------- Heat Dissipation 93 Energy Generation 45 Energy Capacity 2000 Matter Stores 1000 Matter Capacity 1000 Sight Range 20 Terrain Scan Range 20 Terrain Scan Density 10 ECM Strength 1 Armor Coverage 600 Resistance: TH 25 Utility Shielding 33 Weapon Cycling 20 Evasion (%) 70 Targeting Accuracy 5 Recoil Reduction 1 Offensive Hacking 12 Defensive Hacking 10 Relay Coupler Types 2 Relay Coupler Value 35 Item Schematics ----------------- None Robot Schematics ------------------ None Fabricated ------------ Imp. Thunder Leg | x2 | -4/Factory | Preloaded Repaired ---------- Nothing Studied --------- VTOL Module | -9/Materials | Hacked Shotgun | -9/Materials | Hacked Flight Unit | -8/Materials | Hacked Imp. Ion Engine | -8/Materials | Hacked Alien Tech Used ----------------- None Achievements -------------- Executioner Oppo Buddy Well-fed Force Field Challenges ------------ None Game ------ Seed ThermalMicrowarpPod Manual? 0 Play Time 01:06:21 Cumulative 113.9 hours Start 2026.06.23 @ 11:29:01 End 2026.06.23 @ 12:33:03 Sessions 1 Manual Loads 0 Difficulty Rogue Special Mode None Game No. 139 Rogue 139 Adventurer 0 Explorer 0 Win Type - Total 1 Types 1/0/0/0/0/0/0/0/0/0 Lore% 75 Gallery% 55 Achievement% 41 Wizard Run 0 Options --------- Layout 1 ASCII 0 Keyboard 0 Movement Mouse Keybinds 0 Fullscreen 2 Font 24/Smallcaps Map View 50x35 Zoom Use 0% Tactical HUD 0 Map Filters NONE Filters NONE Steam 1 RUN: b3123e94-aa09-47e6-a6d2-3defcdbb9089